Workbook

Sheet 📊 Sales Register
A1: 📊 SALES REGISTER & INVOICE HISTORY AUDIT LOG
A2: ⚠️ NOTE: THIS SALES REGISTER IS AUTO-GENERATED & AUTO-UPDATED AUTOMATION LOG. NO MANUAL ENTRY IS REQUIRED.
A4: Total Invoices Issued: =COUNTA(B6:B1000) | D4: Total Taxable Sales: =SUM(H6:H1000) | G4: Total Tax Collected: =SUM(I6:K1000) | J4: Total Revenue (Incl. Tax): =SUM(L6:L1000)
A5: S.No. | B5: Invoice No. | C5: Date | D5: Invoice Type | E5: Client Name | F5: Client GSTIN | G5: Place of Supply | H5: Taxable Value (₹) | I5: CGST (₹) | J5: SGST (₹) | K5: IGST (₹) | L5: Total Amount (₹) | M5: Saved Timestamp

Sheet 🏢 Company Settings
A1: 🏢 COMPANY / BUSINESS PROFILE & INVOICE SETTINGS
A2: Field Name | B2: Setting / Value | C2: Description / Usage
A3: Business / Firm Name | B3: Smartious Institute of Accounts and Taxation | C3: Appears as Seller Name on Invoice Header
A4: GSTIN | B4: 07AAAAA0000A1Z5 | C4: Seller GSTIN Number
A5: Address | B5: 123, Commercial Complex, Connaught Place, New Delhi - 110001 | C5: Seller Billing Address
A6: State | B6: Delhi | C6: Seller State Name
A7: State Code | B7: 7 | C7: Seller 2-digit State Code (e.g. 07 for Delhi)
A8: Phone | B8: +91 98765 43210 | C8: Seller Contact Number
A9: Email | B9: info@capiyushgupta.com | C9: Seller Official Email
A10: Website | B10: https://capiyushgupta.com | C10: Seller Website URL
A11: Bank Name | B11: HDFC Bank Ltd | C11: Bank Name for payment transfer
A12: Account Number | B12: 50200012345678 | C12: Seller Bank Account Number
A13: IFSC Code | B13: HDFC0001234 | C13: Bank Branch IFSC Code
A14: Branch Name | B14: Connaught Place, New Delhi | C14: Bank Branch Address
A15: UPI ID | B15: capiyushgupta@upi | C15: UPI Payment ID for QR / Direct Transfer
A16: Invoice Number Prefix | B16: INV/25-26/ | C16: Prefix added before sequence number
A17: Next Invoice Sequence No | B17: 1 | C17: Numerical counter auto-incremented by Save Macro
A18: Default Terms & Conditions | B18: 1. Goods/Services once supplied cannot be taken back. 2. Subject to Delhi Jurisdiction. 3. Interest @18% p.a. will be charged if payment is not made within due date. | C18: Default footer terms

Sheet 📦 Product Master
A1: 📦 PRODUCT / SERVICE MASTER CATALOG
A2: S.No. | B2: Product / Service Name | C2: HSN / SAC Code | D2: Unit | E2: Unit Rate (₹) | F2: GST Rate %
A3: 1 | B3: Accounting & Bookkeeping Consultancy Services | C3: 998222 | D3: SAC | E3: ₹15,000.00 | F3: 18%
A4: 2 | B4: GST Return Filing & Compliance Retainer | C4: 998231 | D4: SAC | E4: ₹5,000.00 | F4: 18%
A5: 3 | B5: Tally Prime Gold Software License | C5: 852380 | D5: NOS | E5: ₹22,500.00 | F5: 18%
A6: 4 | B6: Office Stationery & Supplies Set | C6: 482010 | D6: SET | E6: ₹1,200.00 | F6: 12%
A7: 5 | B7: Taxation Advisory & Audit Retainer | C7: 998221 | D7: HRS | E7: ₹2,500.00 | F7: 18%

Sheet 👥 Client Master
A1: 👥 CLIENT / CUSTOMER MASTER DATABASE
A2: S.No. | B2: Client / Customer Name | C2: GSTIN | D2: Contact Person | E2: Phone | F2: Email | G2: Billing Address | H2: State & Code
A3: 1 | B3: ABC Enterprises Pvt Ltd | C3: 07AAACA1234B1Z2 | D3: Rajesh Kumar | E3: 9811122233 | F3: rajesh@abcent.com | G3: Plot 45, Okhla Phase 3, New Delhi - 110020 | H3: Delhi (07)
A4: 2 | B4: TechSolutions India Pvt Ltd | C4: 27BBBCT5678C1Z9 | D4: Amit Sharma | E4: 9822233344 | F4: info@techsol.com | G4: 102, MG Road, Mumbai, Maharashtra - 400001 | H4: Maharashtra (27)
A5: 3 | B5: Sharma Traders | C5: 07CCCDS9012D1Z4 | D5: Vijay Sharma | E5: 9833344455 | F5: vijay@sharmatraders.in | G5: Shop 12, Karol Bagh, New Delhi - 110005 | H5: Delhi (07)

Sheet 🧾 Tax Invoice
A2: CA Piyush Gupta | Smartious Institute of Accounts and Taxation
A4: TAX INVOICE & BILLING GENERATOR (OFFLINE EXCEL TOOL)
A5: 🎓 Become a Highly Paid Expert Accountant — Join Practical Course at capiyushgupta.com
B7: 🌐 Visit Website (capiyushgupta.com) | E7: 💬 Join WhatsApp Group | H7: 📱 Download Android App
A9: 💡 INSTRUCTIONS: Select Client Name in cell B19 & Products in item table. Use the Action Buttons on the Right Sidebar to Save or Print PDF.
A11: SELLER / SUPPLIER DETAILS | G11: INVOICE METADATA & CONTROL | N11: ⚡ QUICK INVOICE ACTIONS
A12: ='🏢 Company Settings'!B3 -> Smartious Institute of Accounts and Taxation | G12: Invoice Type: | H12: TAX INVOICE
A13: ="GSTIN: " & '🏢 Company Settings'!B4 -> GSTIN: 07AAAAA0000A1Z5 | G13: Invoice No.: | H13: ='🏢 Company Settings'!B16 & TEXT('🏢 Company Settings'!B17, "000") -> INV/25-26/001
A14: ='🏢 Company Settings'!B5 -> 123, Commercial Complex, Connaught Place, New Delhi - 110001 | G14: Invoice Date: | H14: =TODAY() -> 2026-08-09
A15: ="State: " & '🏢 Company Settings'!B6 & " (Code: " & '🏢 Company Settings'!B7 & ")" -> State: Delhi (Code: 7) | G15: Due Date: | H15: =TODAY()+15 -> 2026-08-24
A16: ="Phone: " & '🏢 Company Settings'!B8 & " | Email: " & '🏢 Company Settings'!B9 -> Phone: +91 98765 43210 | Email: info@capiyushgupta.com | G16: Supply Type: | H16: =IF(B19="", "INTRASTATE (CGST+SGST)", IF(ISNUMBER(SEARCH("(" & TEXT('🏢 Company Settings'!$B$7, "00") & ")", VLOOKUP(B19, '👥 Client Master'!$B$3:$H$100, 7, FALSE))), "INTRASTATE (CGST+SGST)", "INTERSTATE (IGST)")) -> INTRASTATE (CGST+SGST)
A18: BUYER / CLIENT DETAILS (BILL TO)
A19: Select Client Name: | B19: ABC Enterprises Pvt Ltd
A20: Client GSTIN: | B20: =IF(B19<>"", VLOOKUP(B19, '👥 Client Master'!$B$3:$H$100, 2, FALSE), "") -> 07AAACA1234B1Z2 | G20: Place of Supply: | H20: =IF(B19<>"", VLOOKUP(B19, '👥 Client Master'!$B$3:$H$100, 7, FALSE), "") -> Delhi (07)
A21: Billing Address: | B21: =IF(B19<>"", VLOOKUP(B19, '👥 Client Master'!$B$3:$H$100, 6, FALSE), "") -> Plot 45, Okhla Phase 3, New Delhi - 110020
A23: S.No. | B23: Description of Goods / Services | C23: HSN/SAC | D23: Qty | E23: Unit | F23: Rate (₹) | G23: Taxable Value (₹) | H23: GST % | I23: CGST (₹) | J23: SGST (₹) | K23: IGST (₹) | L23: Total (₹)
A24: =IF(B24<>"", 1, "") -> 1 | B24: Accounting & Bookkeeping Consultancy Services | C24: =IF(B24<>"", VLOOKUP(B24, '📦 Product Master'!$B$3:$F$100, 2, FALSE), "") -> 998222 | D24: 1 | E24: =IF(B24<>"", VLOOKUP(B24, '📦 Product Master'!$B$3:$F$100, 3, FALSE), "") -> SAC | F24: =IF(B24<>"", VLOOKUP(B24, '📦 Product Master'!$B$3:$F$100, 4, FALSE), 0) -> ₹15,000.00 | G24: =IF(B24<>"", D24*F24, 0) -> ₹15,000.00 | H24: =IF(B24<>"", VLOOKUP(B24, '📦 Product Master'!$B$3:$F$100, 5, FALSE), 0) -> 18% | I24: =IF(AND(B24<>"", ISNUMBER(SEARCH("INTRASTATE", $H$16))), G24*(H24/2), 0) -> ₹1,350.00 | J24: =IF(AND(B24<>"", ISNUMBER(SEARCH("INTRASTATE", $H$16))), G24*(H24/2), 0) -> ₹1,350.00 | K24: =IF(AND(B24<>"", ISNUMBER(SEARCH("INTERSTATE", $H$16))), G24*H24, 0) -> ₹0.00 | L24: =IF(B24<>"", G24+I24+J24+K24, 0) -> ₹17,700.00
A25: =IF(B25<>"", 2, "") -> 2 | B25: GST Return Filing & Compliance Retainer | C25: =IF(B25<>"", VLOOKUP(B25, '📦 Product Master'!$B$3:$F$100, 2, FALSE), "") -> 998231 | D25: 1 | E25: =IF(B25<>"", VLOOKUP(B25, '📦 Product Master'!$B$3:$F$100, 3, FALSE), "") -> SAC | F25: =IF(B25<>"", VLOOKUP(B25, '📦 Product Master'!$B$3:$F$100, 4, FALSE), 0) -> ₹5,000.00 | G25: =IF(B25<>"", D25*F25, 0) -> ₹5,000.00 | H25: =IF(B25<>"", VLOOKUP(B25, '📦 Product Master'!$B$3:$F$100, 5, FALSE), 0) -> 18% | I25: =IF(AND(B25<>"", ISNUMBER(SEARCH("INTRASTATE", $H$16))), G25*(H25/2), 0) -> ₹450.00 | J25: =IF(AND(B25<>"", ISNUMBER(SEARCH("INTRASTATE", $H$16))), G25*(H25/2), 0) -> ₹450.00 | K25: =IF(AND(B25<>"", ISNUMBER(SEARCH("INTERSTATE", $H$16))), G25*H25, 0) -> ₹0.00 | L25: =IF(B25<>"", G25+I25+J25+K25, 0) -> ₹5,900.00
A26: =IF(B26<>"", 3, "") ->  | C26: =IF(B26<>"", VLOOKUP(B26, '📦 Product Master'!$B$3:$F$100, 2, FALSE), "") ->  | D26: 1 | E26: =IF(B26<>"", VLOOKUP(B26, '📦 Product Master'!$B$3:$F$100, 3, FALSE), "") ->  | F26: =IF(B26<>"", VLOOKUP(B26, '📦 Product Master'!$B$3:$F$100, 4, FALSE), 0) -> ₹0.00 | G26: =IF(B26<>"", D26*F26, 0) -> ₹0.00 | H26: =IF(B26<>"", VLOOKUP(B26, '📦 Product Master'!$B$3:$F$100, 5, FALSE), 0) -> 0% | I26: =IF(AND(B26<>"", ISNUMBER(SEARCH("INTRASTATE", $H$16))), G26*(H26/2), 0) -> ₹0.00 | J26: =IF(AND(B26<>"", ISNUMBER(SEARCH("INTRASTATE", $H$16))), G26*(H26/2), 0) -> ₹0.00 | K26: =IF(AND(B26<>"", ISNUMBER(SEARCH("INTERSTATE", $H$16))), G26*H26, 0) -> ₹0.00 | L26: =IF(B26<>"", G26+I26+J26+K26, 0) -> ₹0.00
A27: =IF(B27<>"", 4, "") ->  | C27: =IF(B27<>"", VLOOKUP(B27, '📦 Product Master'!$B$3:$F$100, 2, FALSE), "") ->  | D27: 1 | E27: =IF(B27<>"", VLOOKUP(B27, '📦 Product Master'!$B$3:$F$100, 3, FALSE), "") ->  | F27: =IF(B27<>"", VLOOKUP(B27, '📦 Product Master'!$B$3:$F$100, 4, FALSE), 0) -> ₹0.00 | G27: =IF(B27<>"", D27*F27, 0) -> ₹0.00 | H27: =IF(B27<>"", VLOOKUP(B27, '📦 Product Master'!$B$3:$F$100, 5, FALSE), 0) -> 0% | I27: =IF(AND(B27<>"", ISNUMBER(SEARCH("INTRASTATE", $H$16))), G27*(H27/2), 0) -> ₹0.00 | J27: =IF(AND(B27<>"", ISNUMBER(SEARCH("INTRASTATE", $H$16))), G27*(H27/2), 0) -> ₹0.00 | K27: =IF(AND(B27<>"", ISNUMBER(SEARCH("INTERSTATE", $H$16))), G27*H27, 0) -> ₹0.00 | L27: =IF(B27<>"", G27+I27+J27+K27, 0) -> ₹0.00
A28: =IF(B28<>"", 5, "") ->  | C28: =IF(B28<>"", VLOOKUP(B28, '📦 Product Master'!$B$3:$F$100, 2, FALSE), "") ->  | D28: 1 | E28: =IF(B28<>"", VLOOKUP(B28, '📦 Product Master'!$B$3:$F$100, 3, FALSE), "") ->  | F28: =IF(B28<>"", VLOOKUP(B28, '📦 Product Master'!$B$3:$F$100, 4, FALSE), 0) -> ₹0.00 | G28: =IF(B28<>"", D28*F28, 0) -> ₹0.00 | H28: =IF(B28<>"", VLOOKUP(B28, '📦 Product Master'!$B$3:$F$100, 5, FALSE), 0) -> 0% | I28: =IF(AND(B28<>"", ISNUMBER(SEARCH("INTRASTATE", $H$16))), G28*(H28/2), 0) -> ₹0.00 | J28: =IF(AND(B28<>"", ISNUMBER(SEARCH("INTRASTATE", $H$16))), G28*(H28/2), 0) -> ₹0.00 | K28: =IF(AND(B28<>"", ISNUMBER(SEARCH("INTERSTATE", $H$16))), G28*H28, 0) -> ₹0.00 | L28: =IF(B28<>"", G28+I28+J28+K28, 0) -> ₹0.00
A29: =IF(B29<>"", 6, "") ->  | C29: =IF(B29<>"", VLOOKUP(B29, '📦 Product Master'!$B$3:$F$100, 2, FALSE), "") ->  | D29: 1 | E29: =IF(B29<>"", VLOOKUP(B29, '📦 Product Master'!$B$3:$F$100, 3, FALSE), "") ->  | F29: =IF(B29<>"", VLOOKUP(B29, '📦 Product Master'!$B$3:$F$100, 4, FALSE), 0) -> ₹0.00 | G29: =IF(B29<>"", D29*F29, 0) -> ₹0.00 | H29: =IF(B29<>"", VLOOKUP(B29, '📦 Product Master'!$B$3:$F$100, 5, FALSE), 0) -> 0% | I29: =IF(AND(B29<>"", ISNUMBER(SEARCH("INTRASTATE", $H$16))), G29*(H29/2), 0) -> ₹0.00 | J29: =IF(AND(B29<>"", ISNUMBER(SEARCH("INTRASTATE", $H$16))), G29*(H29/2), 0) -> ₹0.00 | K29: =IF(AND(B29<>"", ISNUMBER(SEARCH("INTERSTATE", $H$16))), G29*H29, 0) -> ₹0.00 | L29: =IF(B29<>"", G29+I29+J29+K29, 0) -> ₹0.00
A30: =IF(B30<>"", 7, "") ->  | C30: =IF(B30<>"", VLOOKUP(B30, '📦 Product Master'!$B$3:$F$100, 2, FALSE), "") ->  | D30: 1 | E30: =IF(B30<>"", VLOOKUP(B30, '📦 Product Master'!$B$3:$F$100, 3, FALSE), "") ->  | F30: =IF(B30<>"", VLOOKUP(B30, '📦 Product Master'!$B$3:$F$100, 4, FALSE), 0) -> ₹0.00 | G30: =IF(B30<>"", D30*F30, 0) -> ₹0.00 | H30: =IF(B30<>"", VLOOKUP(B30, '📦 Product Master'!$B$3:$F$100, 5, FALSE), 0) -> 0% | I30: =IF(AND(B30<>"", ISNUMBER(SEARCH("INTRASTATE", $H$16))), G30*(H30/2), 0) -> ₹0.00 | J30: =IF(AND(B30<>"", ISNUMBER(SEARCH("INTRASTATE", $H$16))), G30*(H30/2), 0) -> ₹0.00 | K30: =IF(AND(B30<>"", ISNUMBER(SEARCH("INTERSTATE", $H$16))), G30*H30, 0) -> ₹0.00 | L30: =IF(B30<>"", G30+I30+J30+K30, 0) -> ₹0.00
A31: =IF(B31<>"", 8, "") ->  | C31: =IF(B31<>"", VLOOKUP(B31, '📦 Product Master'!$B$3:$F$100, 2, FALSE), "") ->  | D31: 1 | E31: =IF(B31<>"", VLOOKUP(B31, '📦 Product Master'!$B$3:$F$100, 3, FALSE), "") ->  | F31: =IF(B31<>"", VLOOKUP(B31, '📦 Product Master'!$B$3:$F$100, 4, FALSE), 0) -> ₹0.00 | G31: =IF(B31<>"", D31*F31, 0) -> ₹0.00 | H31: =IF(B31<>"", VLOOKUP(B31, '📦 Product Master'!$B$3:$F$100, 5, FALSE), 0) -> 0% | I31: =IF(AND(B31<>"", ISNUMBER(SEARCH("INTRASTATE", $H$16))), G31*(H31/2), 0) -> ₹0.00 | J31: =IF(AND(B31<>"", ISNUMBER(SEARCH("INTRASTATE", $H$16))), G31*(H31/2), 0) -> ₹0.00 | K31: =IF(AND(B31<>"", ISNUMBER(SEARCH("INTERSTATE", $H$16))), G31*H31, 0) -> ₹0.00 | L31: =IF(B31<>"", G31+I31+J31+K31, 0) -> ₹0.00
A32: =IF(B32<>"", 9, "") ->  | C32: =IF(B32<>"", VLOOKUP(B32, '📦 Product Master'!$B$3:$F$100, 2, FALSE), "") ->  | D32: 1 | E32: =IF(B32<>"", VLOOKUP(B32, '📦 Product Master'!$B$3:$F$100, 3, FALSE), "") ->  | F32: =IF(B32<>"", VLOOKUP(B32, '📦 Product Master'!$B$3:$F$100, 4, FALSE), 0) -> ₹0.00 | G32: =IF(B32<>"", D32*F32, 0) -> ₹0.00 | H32: =IF(B32<>"", VLOOKUP(B32, '📦 Product Master'!$B$3:$F$100, 5, FALSE), 0) -> 0% | I32: =IF(AND(B32<>"", ISNUMBER(SEARCH("INTRASTATE", $H$16))), G32*(H32/2), 0) -> ₹0.00 | J32: =IF(AND(B32<>"", ISNUMBER(SEARCH("INTRASTATE", $H$16))), G32*(H32/2), 0) -> ₹0.00 | K32: =IF(AND(B32<>"", ISNUMBER(SEARCH("INTERSTATE", $H$16))), G32*H32, 0) -> ₹0.00 | L32: =IF(B32<>"", G32+I32+J32+K32, 0) -> ₹0.00
A33: =IF(B33<>"", 10, "") ->  | C33: =IF(B33<>"", VLOOKUP(B33, '📦 Product Master'!$B$3:$F$100, 2, FALSE), "") ->  | D33: 1 | E33: =IF(B33<>"", VLOOKUP(B33, '📦 Product Master'!$B$3:$F$100, 3, FALSE), "") ->  | F33: =IF(B33<>"", VLOOKUP(B33, '📦 Product Master'!$B$3:$F$100, 4, FALSE), 0) -> ₹0.00 | G33: =IF(B33<>"", D33*F33, 0) -> ₹0.00 | H33: =IF(B33<>"", VLOOKUP(B33, '📦 Product Master'!$B$3:$F$100, 5, FALSE), 0) -> 0% | I33: =IF(AND(B33<>"", ISNUMBER(SEARCH("INTRASTATE", $H$16))), G33*(H33/2), 0) -> ₹0.00 | J33: =IF(AND(B33<>"", ISNUMBER(SEARCH("INTRASTATE", $H$16))), G33*(H33/2), 0) -> ₹0.00 | K33: =IF(AND(B33<>"", ISNUMBER(SEARCH("INTERSTATE", $H$16))), G33*H33, 0) -> ₹0.00 | L33: =IF(B33<>"", G33+I33+J33+K33, 0) -> ₹0.00
A34: TOTALS | G34: =SUM(G24:G33) -> ₹20,000.00 | I34: =SUM(I24:I33) -> ₹1,800.00 | J34: =SUM(J24:J33) -> ₹1,800.00 | K34: =SUM(K24:K33) -> ₹0.00 | L34: =SUM(L24:L33) -> ₹23,600.00
I35: Subtotal Taxable Value: | L35: =G34 -> ₹20,000.00
I36: Total GST Amount: | L36: =SUM(I34:K34) -> ₹3,600.00
I37: Round Off Amount: | L37: =ROUND(G34+SUM(I34:K34), 0) - (G34+SUM(I34:K34)) -> ₹0.00
I38: GRAND TOTAL (₹): | L38: =ROUND(G34+SUM(I34:K34), 0) -> ₹23,600.00
A39: Amount in Words: | B39: =SpellNumber(L38) -> 
A41: BANK & PAYMENT DETAILS | F41: TERMS & CONDITIONS | J41: FOR SELLER FIRM
A42: ="Bank Name: " & '🏢 Company Settings'!B11 -> Bank Name: HDFC Bank Ltd | F42: ='🏢 Company Settings'!B18 -> 1. Goods/Services once supplied cannot be taken back. 2. Subject to Delhi Jurisdiction. 3. Interest @18% p.a. will be charged if payment is not made within due date. | J42: ="For " & '🏢 Company Settings'!B3 -> For Smartious Institute of Accounts and Taxation
A43: ="Account No.: " & '🏢 Company Settings'!B12 -> Account No.: 50200012345678
A44: ="IFSC Code: " & '🏢 Company Settings'!B13 & " | Branch: " & '🏢 Company Settings'!B14 -> IFSC Code: HDFC0001234 | Branch: Connaught Place, New Delhi
A45: ="UPI ID: " & '🏢 Company Settings'!B15 -> UPI ID: capiyushgupta@upi | J45: (Authorized Signatory)

Sheet 📖 Instructions
A1: 📖 USER GUIDE & VISUAL INSTRUCTION MANUAL
A2: OFFLINE GST INVOICE GENERATOR TOOL — CA PIYUSH GUPTA | SMARTIOUS INSTITUTE
A4: 🚀 QUICK START WORKFLOW & INSTRUCTIONS
A5: STEP 1: ONE-TIME COMPANY SETUP | B5: 🏢 Company Settings Sheet | C5: Open 'Company Settings' sheet and enter your Firm Name, GSTIN, Address, Phone, Email, Bank Details, and Invoice Prefix once. These details will automatically populate every invoice.
A6: STEP 2: CLIENT MASTER DATABASE | B6: 👥 Client Master Sheet | C6: Add your regular customers in 'Client Master' with their GSTIN, Address, and State. In the invoice sheet, simply select the client name from the dropdown to auto-fill all details.
A7: STEP 3: PRODUCT CATALOG MASTER | B7: 📦 Product Master Sheet | C7: Maintain your goods and services in 'Product Master' with HSN/SAC codes, rates, and GST % (12%, 18%, etc.). Item details will auto-calculate when picked in the invoice table.
A8: STEP 4: CREATE & PRINT TAX INVOICE | B8: 🧾 Tax Invoice Sheet | C8: Select Client Name in cell B19 and items in the invoice table. Taxes (CGST, SGST, IGST), totals, and Indian Rupees amount-in-words populate dynamically.
A9: STEP 5: ACTION BUTTONS (RIGHT SIDEBAR) | B9: ⚡ Right Action Sidebar | C9: Use the buttons on the right side of the screen: • 💾 Save & Archive Invoice: Logs sale to Sales Register & increments next invoice sequence. • 🖨️ Export PDF / Print: Generates a clean 1-page PDF invoice and auto-archives sale. • 🔄 Clear Form: Resets line items for the next invoice.
A10: STEP 6: AUTOMATED SALES AUDIT LOG | B10: 📊 Sales Register Sheet | C10: ⚠️ NOTE: The Sales Register is auto-generated and auto-updated every time an invoice is saved or printed. No manual entry is required.
A13: 🔒 SECURITY & PROTECTION HIGHLIGHTS
A14: • Hidden & Protected Formulas | B14: All calculation formulas (CGST, SGST, IGST, Lookups, SpellNumber) are hidden and locked to prevent accidental corruption or modification.
A15: • Single-Page PDF Print Layout | B15: PDF exports are configured to print cleanly on a single page, excluding promotional banners and macro sidebar buttons.
A16: • Offline Operations | B16: Operates 100% offline without requiring internet connection or website login.
